Cogmind - Beta 17 @@@ ROGUE MODE // 2026.07.03 @ 19:09:26 Player: chai Result: Destroyed by Y-45 Defender with Beam Rifle Performance ------------- Evolutions (1) 500 Regions Visited (3) 600 Robots Destroyed (56) 280 Value Destroyed (1574) 1574 Prototype IDs (9) 180 Alien Tech Used (0) 0 Bonus (74) 74 TOTAL SCORE: 3208 Bonus ------- Follower Combat Kills 74 Cogmind --------- Core Integrity 0/400 Matter 294/300 Energy 280/280 System Corruption 12% Temperature Cool (9) Movement Treading (240) Ox1 Location -9/Storage Parts ------- > --- POWER (1) -------- Heavy Ion Engine (fused) > --- PROPULSION (2) --- Light Treads > --- UTILITY (4) ------ Medium Storage Unit Medium Armor Plating > --- WEAPON (2) ------- Heavy Hammer > --- INVENTORY (10) --- Light Ion Engine Medium Armor Plating Medium Armor Plating Recalibrator Light EM Pulse Cannon Autogun Autogun Improved Assault Rifle Rocket Launcher Mini Grenade Launcher Peak State ------------ > --- POWER ------------ Heavy Ion Engine > --- PROPULSION ------- Light Treads Improved Flight Unit > --- UTILITY ---------- Medium Storage Unit Core Shielding Medium Armor Plating Medium Armor Plating > --- WEAPON ----------- Heavy Assault Rifle Heavy Hammer > --- INVENTORY -------- Medium Armor Plating Recalibrator Light EM Pulse Cannon Autogun Autogun Improved Assault Rifle Rocket Launcher Mini Grenade Launcher [Rating: 18] Favorites ----------- Power Improved Ion Engine Engine Improved Ion Engine Propulsion Compact Wheel Treads Light Treads Wheel Compact Wheel Flight Unit Improved Flight Unit Utility Medium Storage Unit Device Heat Sink Storage Medium Storage Unit Processor Signal Interpreter Protection Medium Armor Plating Weapon Heavy Assault Rifle Energy Gun Beam Rifle Energy Cannon Light EM Pulse Cannon Ballistic Gun Heavy Assault Rifle Ballistic Cannon Light Cannon Launcher Rocket Launcher Impact Weapon Heavy Hammer Build | -11 -10 -9 -9 ------- Run | Yrd Mat Mat Sto Slots Evolved 2 | . . 2 . Power . | . . . . Propulsion . | . . . . Utility 2 | . . 2 . Weapon . | . . . . Parts Attached 57 | 6 8 19 24 Power 7 | 1 . 2 4 Engine 7 | 1 . 2 4 Core . | . . . . Reactor . | . . . . Propulsion 12 | 2 3 2 5 Treads 5 | 1 1 2 1 Leg . | . . . . Wheel 6 | 1 2 . 3 Hover . | . . . . Flight 1 | . . . 1 Utility 21 | 1 4 7 9 Device 5 | . 1 4 . Storage 5 | 1 3 . 1 Processor 1 | . . 1 . Hackware . | . . . . Protection 10 | . . 2 8 Artifact . | . . . . Weapon 17 | 2 1 8 6 Energy Gun 4 | 1 . 3 . Energy Cannon 1 | . . 1 . Ballistic Gun 8 | 1 . 2 5 Ballistic Cannon 1 | . 1 . . Launcher 1 | . . 1 . Special Weapon . | . . . . Impact Weapon 2 | . . 1 1 Slashing Weapon . | . . . . Piercing Weapon . | . . . . Special Melee Weapon . | . . . . Unidentified Prototypes 2 | . . 1 1 Corrupted Parts 1 | . . . 1 System Corruption 12 | . . . 12 Parts Lost 24 | . . 6 18 Power 2 | . . . 2 Propulsion 5 | . . 1 4 Utility 10 | . . 2 8 Weapon 7 | . . 3 4 Highest Loss Streak 9 | . . 3 9 To Critical Strikes . | . . . . Average Backups 7 | 2 4 7 9 Power . | . 1 1 . Propulsion 1 | 1 2 2 1 Utility 1 | . . 1 2 Weapon 3 | . 1 2 5 Tool/Special . | . . . . Unused Backups 10 | . . 4 6 Power . | . . . . Propulsion 3 | . . 2 1 Utility 4 | . . 1 3 Weapon 3 | . . 1 2 Tool/Special . | . . . . Average Slot Usage (%) 87 | . 95 85 88 Engine 10 | . 14 10 9 Treads 6 | . . 7 6 Wheel 12 | . 27 12 8 Device 9 | . 9 12 5 Storage 11 | . 14 11 11 Processor 1 | . . . 2 Protection 14 | . . 8 23 Energy Gun 6 | . 14 7 4 Energy Cannon 1 | . . 3 . Ballistic Gun 7 | . 3 8 7 Ballistic Cannon 1 | . 10 1 . Impact Weapon 3 | . . . 6 Peak Build Rating 18 | 6 9 16 18 Average Rating 12 | 4 7 11 14 On Entrance 7 | . 6 9 14 Avg Prop Armor Cover (%) 9 | 17 12 8 11 Naked Turns . | . . . . Heaviest Build 39 | 11 36 29 39 Greatest Support 32 | 16 32 32 24 Greatest Overweight (x) 11 | . 2 1 11 Average Overweight (x) . | . . . 1 Largest Inventory Capacity 15 | 8 15 10 10 Average Capacity 10 | 6 13 10 10 Most Carried 10 | 4 6 10 10 Average Carried 7 | 2 4 7 9 Final Capacity 10 | 8 10 10 10 Final Carried 10 | 4 5 9 10 Class Distribution -------------------- 56% | Mutant 43% | Scavenger-Mutant Dominant Class ---------------- Mutant | -10/Materials Mutant | -9/Materials Scavenger-Mutant | -9/Storage Resources | -11 -10 -9 -9 ----------- Run | Yrd Mat Mat Sto Matter Collected 1386 | 211 90 605 480 Remotely . | . . . . Salvage Created 2238 | . 108 842 1288 Parts 118 | . 3 56 59 Haulers Intercepted 4 | . . . 4 Recyclers Shooed 1 | . . . 1 Parts Field Recycled . | . . . . Retrieved Matter . | . . . . Parts Self-Destructed . | . . . . Prevented . | . . . . Parts Restored . | . . . . Kills | -11 -10 -9 -9 ------- Run | Yrd Mat Mat Sto Combat Hostiles Destroyed 42 | . 2 21 19 Melee 2 | . . . 2 Guns 24 | . . 13 11 Cannons 10 | . 1 6 3 AOE 3 | . 1 2 . Classes Destroyed 12 | . 2 7 3 Worker 2 | . 1 1 . Builder 1 | . . 1 . Hauler 4 | . . . 4 Recycler 3 | . . . 3 Mechanic 1 | . . 1 . Operator 1 | . . 1 . Watcher 1 | . . 1 . Swarmer 7 | . . 7 . Grunt 18 | . 2 7 9 Brawler 1 | . . 1 . Duelist 1 | . . . 1 Sentry 16 | . . 7 9 Best Kill Streak 5 | . 3 5 3 Combat Bots Only 4 | . 2 4 3 Max Kills in Single Turn 6 | . 2 6 1 Gunslinging . | . . . . Exploded 1 | . 1 1 . Melee 1 | . . . 1 Uniques/NPCs Destroyed . | . . . . Combat | -11 -10 -9 -9 -------- Run | Yrd Mat Mat Sto Hostile Shots Fired 311 | . 8 114 189 Missed 83 | . 3 35 45 Hits 228 | . 5 79 144 Melee 3 | . . . 3 Projectile 225 | . 5 79 141 Critical Strikes 5 | . . 1 4 Actively Blocked 1 | . . . 1 Damage Taken 3091 | . 61 915 2115 Core 427 | . 20 143 264 Absorbed by Shields . | . . . . Redirected to Shielding 85 | . . 14 71 Core Remaining (%) 96 | 100 92 . . Volleys Fired 139 | . 7 72 60 Largest 2 | . 2 2 2 Hottest 96 | . 70 96 79 Shots Fired 264 | . 14 131 119 Gun 205 | . 7 88 110 Cannon 55 | . 7 39 9 Launcher 4 | . . 4 . Special . | . . . . Kinetic 126 | . 7 60 59 Thermal 92 | . . 41 51 Explosive 4 | . . 4 . Electromagnetic 42 | . 7 26 9 Robot Hit Streak 14 | . 3 13 14 Robot Miss Streak 4 | . 2 4 4 Penetration Max . | . . . . Secondary Targets 1 | . . 1 . Max Gunslinging Chain 1 | . . 1 . Shots Hit Robots 201 | . 9 83 109 Core Hits 77 | . 5 41 31 Critical Kills . | . . . . Critical Parts Destroyed 5 | . . 1 4 Critical Strikes 17 | . . 5 12 Burn 9 | . . 3 6 Destroy 3 | . . 1 2 Blast 1 | . . 1 . Smash 4 | . . . 4 Melee Attacks 41 | . . 2 39 Impact 41 | . . 2 39 Slashing . | . . . . Piercing . | . . . . Sneak Attacks 5 | . . . 5 Combat Hostiles . | . . . . Follow-up Attacks . | . . . . Damage Inflicted 4455 | . 195 1865 2395 Guns 2122 | . 77 927 1118 Cannons 640 | . 35 455 150 Explosions 566 | . 83 483 . Melee 1127 | . . . 1127 Ramming . | . . . . Kinetic 1210 | . 35 624 551 Thermal 1240 | . 83 590 567 Explosive 384 | . . 384 . Electromagnetic 494 | . 77 267 150 Impact 1127 | . . . 1127 Slashing . | . . . . Piercing . | . . . . Highest Corruption 12 | . . . 12 Average Corruption 12 | . . . 12 Corruption Purged . | . . . . Corruption Blocked . | . . . . Effects 23 | . . . 23 Message Errors 11 | . . . 11 Matter Fused 6 | . . . 6 Energy Discharges 4 | . . . 4 Parts Fused 1 | . . . 1 Data Loss (minor) 1 | . . . 1 Overload Shots . | . . . . Overflow Damage 285 | . . 10 275 Projectiles . | . . . . Explosions 10 | . . 10 . Melee 275 | . . . 275 Knockbacks 3 | . 1 1 1 Impact 1 | . . . 1 Kinetic 2 | . 1 1 . Secondary . | . . . . Self-Inflicted Damage . | . . . . Shots . | . . . . Rammed . | . . . . Targets Rammed . | . . . . Kicked . | . . . . Crushed . | . . . . Highest Temperature 96 | . 96 21 82 Average Temperature 28 | . 53 6 24 Received Heat Transfer 1062 | . 33 309 720 Siege Activations . | . . . . Martial Activations . | . . . . Shielding Activations . | . . . . Robots Disrupted 1 | . . 1 . Combat Hostiles 1 | . . 1 . Robots Corrupted 4 | . . . 4 Combat Hostiles 3 | . . . 3 Parts Fried 7 | . 1 . 6 Impact Corruptions 11 | . . . 11 Robots Melted . | . . . . Combat Hostiles . | . . . . Parts Melted 9 | . . 3 6 Heat Transferred 3420 | . 100 1433 1887 Parts Sabotaged . | . . . . Parts Stolen . | . . . . Parts Stripped . | . . . . Power Chain Reactions 2 | . 1 1 . Alert | -11 -10 -9 -9 ------- Run | Yrd Mat Mat Sto Maximum Alert Level 1 | . . 1 1 Low Security (%) 91 | 100 100 94 85 Level 1 8 | . . 5 14 Level 2 . | . . . . Level 3 . | . . . . Level 4 . | . . . . Level 5 . | . . . . High Security . | . . . . Max Security . | . . . . Peak Influence 371 | . 49 371 241 Initial 155 | . . . 155 Average 110 | . 10 110 132 Influence Increases 1677 | . 74 982 621 Destroy 0b10 Robot/C 920 | . 40 500 380 Destroy 0b10 Robot/NC 75 | . 5 35 35 Destroy Leader 274 | . 10 126 138 Allied During Kill 8 | . . 8 . Successful Hack 43 | . 15 9 19 Disable Machine 45 | . . 45 . Destroy Structure 57 | . 4 49 4 Partial Spotted 15 | . . 15 . Lose Combat Pursuer 240 | . . 195 45 Influence Decreases 1643 | . 74 614 955 Entered New Map 213 | . . . 213 Time Decay 1190 | . 74 554 562 Lost Part 240 | . . 60 180 Squads Dispatched 4 | . . 2 2 Investigation . | . . . . Extermination . | . . . . Reinforcement 4 | . . 2 2 Assault . | . . . . Garrison . | . . . . Intercept . | . . . . Searches Triggered . | . . . . Construction Impeded . | . . . . Haulers Reinforced . | . . . . Active Scanning Responses . | . . . . Cargo Convoy Interrupts . | . . . . Stealth | -11 -10 -9 -9 --------- Run | Yrd Mat Mat Sto Distress Signals 4 | . 1 2 1 Communications Jammed . | . . . . Distress Signals . | . . . . Times Spotted 80 | . 6 45 29 Peak Tracking Total 6 | . 3 6 5 Tactical Retreats 12 | . . 9 3 Traps | -11 -10 -9 -9 ------- Run | Yrd Mat Mat Sto Traps Triggered 2 | . . 1 1 Indirectly . | . . . . Trap Hack Attempts . | . . . . Triggered . | . . . . Disarmed 6 | . . . 6 Reprogrammed . | . . . . Reused . | . . . . Traps Extracted . | . . . . Installed . | . . . . Triggered . | . . . . Machines | -11 -10 -9 -9 ---------- Run | Yrd Mat Mat Sto Machines Disabled 4 | . . 4 . Max in Single Turn 3 | . . 3 . Machines Repaired . | . . . . Machines Dismantled . | . . . . Machines Sabotaged . | . . . . Overloaded Fab Kills . | . . . . Hacking | -11 -10 -9 -9 --------- Run | Yrd Mat Mat Sto Machines Accessed 24 | . 6 8 10 Terminals 18 | . 5 7 6 Fabricators . | . . . . Repair Stations 1 | . . . 1 Recycling Units 4 | . 1 1 2 Scanalyzers . | . . . . Garrison Access 1 | . . . 1 Total Hacks 64 | . 19 17 28 Successful 30 | . 9 8 13 Failed 34 | . 10 9 15 Catastrophic 5 | . 2 . 3 Database Lockouts . | . . . . Manual . | . . . . Terminals 50 | . 17 16 17 Fabricators . | . . . . Repair Stations 2 | . . . 2 Recycling Units 8 | . 2 1 5 Scanalyzers . | . . . . Garrison Access 4 | . . . 4 Terminal Hacks 23 | . 8 7 8 Part Schematic 1 | . . . 1 Robot Analysis 3 | . 1 1 1 Prototype ID Bank 5 | . 2 2 1 Branch Access Points 1 | . . 1 . Emergency Access Points 1 | . . 1 . Terminal Index 1 | . . . 1 Alert Level 3 | . 1 1 1 Locate Traps 2 | . 1 . 1 Disarm Traps 1 | . . . 1 Dispatch Records 1 | . 1 . . Surveillance Status 1 | . . 1 . Hauler Manifests 2 | . 2 . . Registered Components 1 | . . . 1 Fabricator Hacks . | . . . . Repair Station Hacks . | . . . . Recycling Unit Hacks 6 | . 1 1 4 Report Inventory 4 | . 1 1 2 Retrieve Components 2 | . . . 2 Scanalyzer . | . . . . Garrison Access Hacks 1 | . . . 1 Unlock Access 1 | . . . 1 Unauthorized Hacks . | . . . . Terminals . | . . . . Fabricators . | . . . . Repair Stations . | . . . . Recycling Units . | . . . . Scanalyzers . | . . . . Garrison Access . | . . . . Data Cores Recovered . | . . . . Used . | . . . . Hacking Detections 21 | . 6 7 8 Full Trace Events . | . . . . Feedback Events . | . . . . Feedback Blocked . | . . . . Robot Schematics Acquired . | . . . . Robots Built . | . . . . Authchips . | . . . . Time . | . . . . Total Robot Build Rating . | . . . . Part Schematics Acquired 1 | . . . 1 Parts Built . | . . . . Authchips . | . . . . Time . | . . . . Total Part Build Rating . | . . . . Part Studies Acquired . | . . . . Parts Repaired . | . . . . Time . | . . . . Parts Recycled . | . . . . Recycled Matter . | . . . . Retrieved Matter . | . . . . Retrieved Components 19 | . . . 19 Parts Scanalyzed . | . . . . Part Schematics Acquired . | . . . . Parts Damaged . | . . . . Bothacking | -11 -10 -9 -9 ------------ Run | Yrd Mat Mat Sto Used RIF Installer . | . . . . Robots Hacked . | . . . . Non-combat . | . . . . Combat . | . . . . Robot Hacks Applied . | . . . . Relay Couplers Released . | . . . . Fabnet Peak Effective % . | . . . . Robots Rewired 1 | . . 1 . Allies Hacked . | . . . . Hacks Repelled . | . . . . Allies | -11 -10 -9 -9 -------- Run | Yrd Mat Mat Sto Total Allies 1 | . . 1 . Largest Group 1 | . . 1 . Highest-Rated Group 14 | . . 14 . Highest-Rated Ally 14 | . . 14 . Total Orders . | . . . . Ally Attacks 10 | . . 10 . Total Damage 223 | . . 223 . Kills 6 | . . 6 . Allies Corrupted . | . . . . Allies Melted . | . . . . Intel | -11 -10 -9 -9 ------- Run | Yrd Mat Mat Sto Active Infowar (turns) 81 | . . 81 . Terrain 81 | . . 81 . Robot Analysis Total 3 | . 1 1 1 Derelict Logs Recovered . | . . . . Drone Launches . | . . . . Drone Recoveries . | . . . . Exploration | -11 -10 -9 -9 ------------- Run | Yrd Mat Mat Sto Turns Passed 3781 | 58 305 1754 1664 Spaces Moved 2063 | 47 258 992 766 Core 20 | 2 . . 18 Treads 373 | . . 107 266 Legs . | . . . . Wheels 1670 | 45 258 885 482 Hover . | . . . . Flight . | . . . . Fastest Speed 50 | 50 100 100 90 Average Speed 135 | 97 100 126 161 Slowest Speed 600 | 100 130 240 600 Overloaded Moves . | . . . . Propulsion Burnouts . | . . . . Robots Hopped . | . . . . Potential Cave-ins . | . . . . Cave-ins Triggered . | . . . . Exploration Rate (%) 53 | 3 49 76 84 Regions Visited 3 Branch Regions 1 Pre-discovered Areas . | . . . . Known Exits Taken 1 | . . 1 . Unknown Exits Taken 2 | 1 1 . . Scrap Searched . | . . . . Spaces Dug 3 | . . 1 2 Terrain Destroyed 52 | . 4 46 2 Melee 3 | . . 1 2 Projectile . | . . . . AOE 49 | . 4 45 . Terrain Rammed . | . . . . Walls Destroyed . | . . . . Machines Disabled . | . . . . Actions | -11 -10 -9 -9 --------- Run | Yrd Mat Mat Sto Total 2704 | 56 286 1354 1008 Wait 326 | . 5 234 87 Move 2060 | 46 257 991 766 Hop . | . . . . Pick Up 28 | 4 . 13 11 Fast Attach 31 | 6 6 9 10 Attach 10 | . . 3 7 Detach . | . . . . Swap 35 | . 5 15 15 Drop 33 | . 6 14 13 Fire 139 | . 7 72 60 Melee 41 | . . 2 39 Ram . | . . . . Kick . | . . . . Crush . | . . . . Escape Stasis . | . . . . Rewire 1 | . . 1 . Trap . | . . . . Miscellaneous . | . . . . Route ------- -11/Scrapyard -10/Materials (discovered 2 exits: *Mat / [*Min]) -9/Materials (discovered 5 exits: *Mat x2 / *Min x2 / *Sto) -9/Storage (discovered 2 exits: *Mat / Gar) History --------- Turn | Location | Event 10 | -11/Scrapyard | Discovered new exit (range 15) 59 | -11/Scrapyard | Entered Materials 229 | -10/Materials | Discovered new exit (range 16) 304 | -10/Materials | Discovered new exit (range 10) 311 | -10/Materials | Build established: Mutant 364 | -10/Materials | Entered another Materials area 364 | -9/Materials | Evolved 2 slots: Utility x2 456 | -9/Materials | Discovered new exit (range 15) 458 | -9/Materials | Discovered new exit (range 9) 691 | -9/Materials | Discovered new exit (range 14) 698 | -9/Materials | Lost 3 parts (1n1u1w) 1097 | -9/Materials | Identified exit to Mines 1097 | -9/Materials | Identified exit to Storage 1185 | -9/Materials | Discovered new exit (range 5) 1532 | -9/Materials | Build established: Scavenger-Mutant 1966 | -9/Materials | Discovered new exit (range 7) 1987 | -9/Materials | Identified exit to Materials 2118 | -9/Materials | Entered Storage 2160 | -9/Storage | Build established: Mutant 2327 | -9/Storage | Core integrity fell below 50% 2329 | -9/Storage | Lost 3 parts (1p1u1w) 2544 | -9/Storage | Identified exit to Garrison 2830 | -9/Storage | Build established: Scavenger-Mutant 2986 | -9/Storage | Lost 9 parts (1p3n3u2w) 2991 | -9/Storage | Core integrity fell below 20% 3105 | -9/Storage | System corruption reached 10% 3451 | -9/Storage | Discovered exit to Materials (range 13) 3757 | -9/Storage | Build established: Mutant 3782 | -9/Storage | Destroyed by Y-45 Defender with Beam Rifle Last Messages --------------- 03638_ An explosion rips through the floor. 03641_ BJHJZYQ DZ1CXAZNBLDYRW 03670_ Acquired 16 matter. 03699_ 71KP=/WMRAUJ#8#S:U%GNLHZ 03712_ The unstable cave ceiling collapses. 03732_ Y-45 Defender suffers critical hit (Smash). 03732_ Destroyed Lgt. Treads. 03732_ Y-45 Defender system corrupted by crushing effect. 03733_ Y-45 Defender system terminally corrupted. 03733_ Heat Sink fried. 03733_ Beam Rifle fried. 03742_ System corrupted: Matter fused (-9). 03762_ System corrupted: Matter fused (-7). 03763_ Critical hit (Burn: +37). 03763_ Med. Armor Plating destroyed. 03768_ Critical hit (Burn: +37). 03782_ Core Shielding destroyed. Map ----- +----------------------------------------------------+ | | | | | | | | | | | | | | | ######????????????????????????????????? | | # % #??????######????????????????????? | | # ######## # ###################### | | # + | | # ######## | | # #??????### | | # #??????### ####+###########+###### | | # !#??????# #??????# ## | | #= ! #??????#""" #??????# ## | | # #??????#""" #??????# """"" #! | | ######??????#""" %##?????# "???" #! | | ????????""??# = #?????# "??"" #! | | ???????## ??#""" ##?????# ""??" #* | | ????????T ?#""" #??????# "???" # | | ????????# ?#""" #??????# """"" # | | ????????# ?# #??????# # | | ????????+ ##+########??????########## | | ????????# #????????????????????## | | ????????# @Y#????????????########## | | ????????###### #????????????# | | ?????????????# #????????????# """""" | | ????!????????# #????????????# "????" | | ?????????????# #????????????# "????" | | ?????????????# #????????????# """""" | | ?????????????# #????????????# | | ?????????????# k#????????????# | | ?????????????# +????????????# | | ?????????????? #??????################ | | ?????????????? ??????# ########## | | ?????????????? ??????# % | | ?????????????? ??????# | | ?????????????? ??????# % | | ?????????????? ??????# #####+#### | | ?????????????? ??????## ### # | | ????????????????????????# #?# # | | ????????????????????????# #?# # | | ????????????????????????# #?# %# | | ????????????????????????# #?# # | | ????????????????????????# #?# # | | ????????????????????????# ########### | | ????????????????????????# # # # | | ????????????????????????# # # # | | ????????????????????????# # # " | +----------------------------------------------------+ Best States ------------- Heat Dissipation 48 Energy Generation 14 Energy Capacity 280 Matter Stores 300 Matter Capacity 300 Sight Range 16 Terrain Scan Range 16 Terrain Scan Density 10 Armor Coverage 450 Core Shielding 20 Weapon Shielding 33 Evasion (%) 42 Recoil Reduction 1 Item Schematics ----------------- Imp. Light Armor Plating | -9/Storage | Hacked Robot Schematics ------------------ None Fabricated ------------ Nothing Repaired ---------- Nothing Studied --------- None Alien Tech Used ----------------- None Achievements -------------- That Tickles Challenges ------------ None Game ------ Seed EtherialUltimateRouter Manual? 0 Play Time 01:00:37 Cumulative 56.7 hours Start 2026.07.03 @ 17:59:52 End 2026.07.03 @ 19:09:26 Sessions 1 Manual Loads 0 Difficulty Rogue Special Mode None Game No. 35 Rogue 35 Adventurer 0 Explorer 0 Win Type - Total 0 Types 0/0/0/0/0/0/0/0/0/0 Lore% 41 Gallery% 30 Achievement% 27 Wizard Run 0 Options --------- Layout 2 ASCII 0 Keyboard 0 Movement Mouse Keybinds 0 Fullscreen 1 Font 24/Smallcaps Map View 50x44 Zoom Use 0% Tactical HUD 1 Map Filters NONE Filters NONE Steam 1 RUN: def816b3-94da-4497-908f-114c55185a48